fUSD/lending_fUSD_20260522
["ID","MTS","AMOUNT","RATE_DAILY","PERIOD"]
[422801633,1779418237000,-500.0,0.00013699,2]
[422801632,1779418237000,-500.0,0.00013699,2]
[422801635,1779418237000,-500.0,0.00013699,2]
[422801634,1779418237000,-500.0,0.00013699,2]
[422801629,1779418237000,-500.0,0.00013699,2]
[422801658,1779418238000,-500.0,0.00013698,2]
[422801657,1779418238000,-500.0,0.00013698,2]
[422801661,1779418238000,-92.17979885,0.00013699,2]
[422801659,1779418238000,-500.0,0.00013699,2]
[422801660,1779418238000,-500.0,0.00013699,2]
[422801693,1779418239000,-2648.17058701,0.000137,2]
[422801692,1779418239000,-503.44057045,0.000137,2]
[422801691,1779418239000,-591.822,0.000137,2]
[422801690,1779418239000,-925.42819427,0.000137,2]
[422801688,1779418239000,-407.82020115,0.00013699,2]
[422801689,1779418239000,-283.72797213,0.00013699,2]
[422801709,1779418240000,-152.63551181,0.000137,2]
[422801716,1779418240000,-200.0,0.000137,2]
[422801714,1779418240000,-1167.73,0.000137,2]
[422801710,1779418240000,-200.0,0.000137,2]
[422801712,1779418240000,-200.0,0.000137,2]
[422801713,1779418240000,-200.0,0.000137,2]
[422801707,1779418240000,-200.0,0.000137,2]
[422801715,1779418240000,-200.0,0.000137,2]
[422801717,1779418240000,-309.36316626,0.000137,2]
[422801711,1779418240000,-200.0,0.000137,2]
[422801706,1779418240000,-1021.48390042,0.000137,2]
[422801694,1779418240000,-138869.3006371,0.000137,2]
[422801705,1779418240000,-1000.0,0.000137,2]
[422801700,1779418240000,-1000.0,0.000137,2]
[422801701,1779418240000,-1000.0,0.000137,2]
[422801698,1779418240000,-1000.0,0.000137,2]
[422801699,1779418240000,-1000.0,0.000137,2]
[422801697,1779418240000,-160.61068347,0.000137,2]
[422801704,1779418240000,-1000.0,0.000137,2]
[422801703,1779418240000,-1000.0,0.000137,2]
[422801695,1779418240000,-7759.9927187,0.000137,2]
[422801702,1779418240000,-1000.0,0.000137,2]
[422801696,1779418240000,-204.39316636,0.000137,2]
[422801719,1779418240000,-151.0,0.000137,2]
[422801708,1779418240000,-151.677927,0.000137,2]
[422801720,1779418240000,-151.0,0.000137,2]
[422801733,1779418240000,-296.91057,0.000137,2]
[422801727,1779418240000,-1221.357876,0.000137,2]
[422801746,1779418240000,-1255.40367809,0.000137,2]
[422801745,1779418240000,-378.66,0.000137,2]
[422801744,1779418240000,-430.4257349,0.000137,2]
[422801742,1779418240000,-1079200.34733068,0.000137,2]
[422801743,1779418240000,-648.47008569,0.000137,2]
[422801741,1779418240000,-151.0,0.000137,2]
[422801740,1779418240000,-151.0,0.000137,2]
[422801739,1779418240000,-151.0,0.000137,2]
[422801737,1779418240000,-151.0,0.000137,2]
[422801718,1779418240000,-1028872.1142,0.000137,2]
[422801736,1779418240000,-151.0,0.000137,2]
[422801734,1779418240000,-296.91058,0.000137,2]
[422801732,1779418240000,-1221.357876,0.000137,2]
[422801724,1779418240000,-151.0,0.000137,2]
[422801722,1779418240000,-151.0,0.000137,2]
[422801725,1779418240000,-1221.357876,0.000137,2]
[422801731,1779418240000,-1221.357876,0.000137,2]
[422801726,1779418240000,-1221.357876,0.000137,2]
[422801721,1779418240000,-151.0,0.000137,2]
[422801723,1779418240000,-151.0,0.000137,2]
[422801729,1779418240000,-1221.357876,0.000137,2]
[422801730,1779418240000,-1221.357876,0.000137,2]
[422801735,1779418240000,-296.91058,0.000137,2]
[422801728,1779418240000,-1221.357876,0.000137,2]
[422801738,1779418240000,-151.0,0.000137,2]
[422801759,1779418243000,-9869.03538836,0.000137,2]
[422801761,1779418243000,-671.62652613,0.000137,2]
[422801760,1779418243000,-3906.07381794,0.000137,2]
[422801758,1779418243000,-2802.28903288,0.000137,2]
[422801804,1779418245000,-601.71500188,0.000137,2]
[422801802,1779418245000,-1032.44135061,0.000137,2]
[422801812,1779418246000,-52292.37995385,0.000137,2]
[422801810,1779418246000,-1172.45,0.000137,2]
[422801808,1779418246000,-40361.67418518,0.000137,2]
[422801807,1779418246000,-13742.7116454,0.000137,2]
[422801809,1779418246000,-793.1136,0.000137,2]
[422801872,1779419078000,151.0,6.2e-05,2]
[422801879,1779419148000,-243.99,6.698e-05,2]
[422801878,1779419148000,-243.99,6.376e-05,2]
[422801881,1779419148000,-227.88655897,7.343e-05,2]
[422801880,1779419148000,-243.99,7.021e-05,2]
[422801882,1779419158000,152.0,9.115e-05,7]
[422801883,1779419159000,152.0,9.115e-05,7]
[422801884,1779419160000,152.0,0.00018442,30]
[422801894,1779419212000,-16.10344103,7.343e-05,2]
[422801895,1779419212000,-231.52476757,7.665e-05,2]
[422801910,1779419355000,-243.99,7.988e-05,2]
[422801909,1779419355000,-312.85151345,7.827e-05,2]
[422801908,1779419355000,-12.46523243,7.665e-05,2]
[422801911,1779419355000,-243.99,8.31e-05,2]
[422801914,1779419355000,-243.99,8.955e-05,2]
[422801913,1779419355000,-243.99,8.633e-05,2]
[422801912,1779419355000,-250.0,8.432e-05,2]
[422801916,1779419355000,-157.35923046,9.6e-05,2]
[422801915,1779419355000,-243.99,9.277e-05,2]
[422801919,1779419369000,-214.09941332,0.00010245,2]
[422801917,1779419369000,-86.63076954,9.6e-05,2]
[422801918,1779419369000,-243.99,9.922e-05,2]
[422801922,1779419413000,16070.0,0.00019101,30]
[422801929,1779419431000,-250.0,0.00011269,2]
[422801925,1779419431000,-29.89058668,0.00010245,2]
[422801927,1779419431000,-243.99,0.0001089,2]
[422801926,1779419431000,-243.99,0.00010567,2]
[422801931,1779419431000,-174.15,0.00011716,2]
[422801930,1779419431000,-243.99,0.00011534,2]
[422801928,1779419431000,-243.99,0.00011212,2]
[422801932,1779419431000,-874.00683641,0.00011728,2]
[422801933,1779419431000,-464.29087844,0.00011728,2]
[422801936,1779419431000,-103.83249643,0.00011859,2]
[422801934,1779419431000,-661.70228515,0.00011728,2]
[422801935,1779419431000,-243.99,0.00011857,2]
[422801939,1779419431000,-243.99,0.00012179,2]
[422801937,1779419431000,-46.16750357,0.00011859,2]
[422801938,1779419431000,-705.55,0.0001189,2]
[422801981,1779419432000,-500.0,0.00013152,2]
[422801982,1779419432000,-500.0,0.00013152,2]
[422801979,1779419432000,-500.0,0.00013152,2]
[422801980,1779419432000,-500.0,0.00013152,2]
[422801978,1779419432000,-500.0,0.00013152,2]
[422801975,1779419432000,-500.0,0.00013152,2]
[422801976,1779419432000,-500.0,0.00013152,2]
[422801984,1779419432000,-500.0,0.00013152,2]
[422801977,1779419432000,-500.0,0.00013152,2]
[422801972,1779419432000,-508.58471701,0.00013151,2]
[422801973,1779419432000,-150.0,0.00013151,2]
[422801974,1779419432000,-500.0,0.00013152,2]
[422801983,1779419432000,-500.0,0.00013152,2]
[422801985,1779419432000,-500.0,0.00013152,2]
[422801988,1779419432000,-500.0,0.00013152,2]
[422801971,1779419432000,-500.0,0.00013151,2]
[422801991,1779419432000,-425.77342584,0.00013152,2]
[422801987,1779419432000,-500.0,0.00013152,2]
[422801990,1779419432000,-500.0,0.00013152,2]
[422801989,1779419432000,-500.0,0.00013152,2]
[422801993,1779419432000,-241.44671381,0.00013152,2]
[422801992,1779419432000,-150.0,0.00013152,2]
[422801994,1779419432000,-500.0,0.00013152,2]
[422801996,1779419432000,-500.0,0.00013152,2]
[422801995,1779419432000,-500.0,0.00013152,2]
[422801997,1779419432000,-428.86897646,0.00013152,2]
[422801986,1779419432000,-500.0,0.00013152,2]
[422801969,1779419432000,-500.0,0.00013151,2]
[422801948,1779419432000,-300.0,0.000127,2]
[422801999,1779419432000,-500.0,0.00013152,2]
[422801941,1779419432000,-200.0,0.0001254,2]
[422801940,1779419432000,-243.99,0.00012502,2]
[422801942,1779419432000,-241.6,0.00012567,2]
[422801944,1779419432000,-150.0,0.00012616,2]
[422801946,1779419432000,-584.0,0.000127,2]
[422801943,1779419432000,-164.61,0.00012616,2]
[422801945,1779419432000,-150.0,0.00012624,2]
[422801949,1779419432000,-1200.0,0.000127,2]
[422801947,1779419432000,-300.0,0.000127,2]
[422801951,1779419432000,-1509.69,0.00012701,2]
[422801955,1779419432000,-150.0,0.00012896,2]
[422801953,1779419432000,-4342.66,0.00012757,2]
[422801970,1779419432000,-500.0,0.00013151,2]
[422801954,1779419432000,-206.75,0.00012857,2]
[422801956,1779419432000,-150.0,0.00012896,2]
[422801958,1779419432000,-150.0,0.00012964,2]
[422801960,1779419432000,-166.66,0.00013042,2]
[422801959,1779419432000,-150.0,0.00013032,2]
[422801962,1779419432000,-500.0,0.00013151,2]
[422801961,1779419432000,-150.0,0.00013101,2]
[422801963,1779419432000,-500.0,0.00013151,2]
[422801964,1779419432000,-500.0,0.00013151,2]
[422801965,1779419432000,-500.0,0.00013151,2]
[422801966,1779419432000,-500.0,0.00013151,2]
[422801968,1779419432000,-500.0,0.00013151,2]
[422801967,1779419432000,-500.0,0.00013151,2]
[422801957,1779419432000,-150.0,0.00012921,2]
[422801998,1779419432000,-500.0,0.00013152,2]
[422802034,1779419432000,-2000.0,0.00013194,2]
[422802004,1779419432000,-500.0,0.00013152,2]
[422802033,1779419432000,-150.0,0.00013169,2]
[422802036,1779419432000,-199.22,0.00013293,2]
[422802039,1779419432000,-2607.38860181,0.00013425,2]
[422802037,1779419432000,-150.0,0.00013305,2]
[422802038,1779419432000,-150.0,0.00013374,2]
[422802035,1779419432000,-150.0,0.00013237,2]
[422802040,1779419432000,-500.0,0.00013426,2]
[422802043,1779419432000,-1905.089,0.00013463,2]
[422802041,1779419432000,-150.0,0.00013442,2]
[422802042,1779419432000,-25089.02212308,0.00013453,2]
[422802044,1779419432000,-173.034,0.00013463,2]
[422802046,1779419432000,-986.01795,0.0001356,2]
[422802032,1779419432000,-500.0,0.00013152,2]
[422802045,1779419432000,-150.0,0.0001351,2]
[422802047,1779419432000,-986.01795,0.0001356,2]
[422802050,1779419432000,-204.1,0.0001359,2]
[422802048,1779419432000,-150.0,0.00013578,2]
[422802051,1779419432000,-204.1,0.0001359,2]
[422802053,1779419432000,-204.1,0.0001359,2]
[422802052,1779419432000,-204.1,0.0001359,2]
[422802055,1779419432000,-204.1,0.0001359,2]
[422802054,1779419432000,-204.1,0.0001359,2]
[422802056,1779419432000,-204.1,0.0001359,2]
[422802058,1779419432000,-204.1,0.0001359,2]
[422802059,1779419432000,-200.0,0.0001359,2]
[422802057,1779419432000,-204.1,0.0001359,2]
[422802049,1779419432000,-986.01795,0.0001358,2]
[422802030,1779419432000,-500.0,0.00013152,2]
[422802001,1779419432000,-500.0,0.00013152,2]
[422802029,1779419432000,-500.0,0.00013152,2]
[422802031,1779419432000,-517.77439079,0.00013152,2]
[422802000,1779419432000,-150.0,0.00013152,2]
[422802002,1779419432000,-260.60415802,0.00013152,2]
[422802006,1779419432000,-500.0,0.00013152,2]
[422802005,1779419432000,-500.0,0.00013152,2]
[422802008,1779419432000,-500.0,0.00013152,2]
[422802007,1779419432000,-600.2889482,0.00013152,2]
[422802010,1779419432000,-500.0,0.00013152,2]
[422802009,1779419432000,-500.0,0.00013152,2]
[422802011,1779419432000,-500.0,0.00013152,2]
[422802014,1779419432000,-500.0,0.00013152,2]
[422802013,1779419432000,-500.0,0.00013152,2]
[422802016,1779419432000,-500.0,0.00013152,2]
[422802003,1779419432000,-177.84663553,0.00013152,2]
[422802012,1779419432000,-500.0,0.00013152,2]
[422802026,1779419432000,-500.0,0.00013152,2]
[422802028,1779419432000,-500.0,0.00013152,2]
[422802027,1779419432000,-500.0,0.00013152,2]
[422802025,1779419432000,-244.1373562,0.00013152,2]
[422802017,1779419432000,-500.0,0.00013152,2]
[422802023,1779419432000,-500.0,0.00013152,2]
[422802024,1779419432000,-455.58540682,0.00013152,2]
[422802021,1779419432000,-500.0,0.00013152,2]
[422802022,1779419432000,-500.0,0.00013152,2]
[422802018,1779419432000,-500.0,0.00013152,2]
[422802020,1779419432000,-500.0,0.00013152,2]
[422802015,1779419432000,-500.0,0.00013152,2]
[422802019,1779419432000,-500.0,0.00013152,2]
[422802098,1779419433000,-5600.98,0.00013699,2]
[422802096,1779419433000,-4999.99,0.00013699,2]
[422802097,1779419433000,-9999.99,0.00013699,2]
[422802095,1779419433000,-16424.84,0.00013699,2]
[422802088,1779419433000,-500.0,0.00013698,2]
[422802092,1779419433000,-500.0,0.00013698,2]
[422802093,1779419433000,-500.0,0.00013698,2]
[422802090,1779419433000,-350.56333019,0.00013698,2]
[422802091,1779419433000,-500.0,0.00013698,2]
[422802099,1779419433000,-150.99,0.00013699,2]
[422802094,1779419433000,-401.56350951,0.00013698,2]
[422802100,1779419433000,-9999.99,0.00013699,2]
[422802108,1779419433000,-9999.99,0.00013699,2]
[422802104,1779419433000,-14178.0,0.00013699,2]
[422802105,1779419433000,-999.99,0.00013699,2]
[422802103,1779419433000,-499.99,0.00013699,2]
[422802106,1779419433000,-705.63,0.00013699,2]
[422802107,1779419433000,-1735.25,0.00013699,2]
[422802109,1779419433000,-299.99,0.00013699,2]
[422802111,1779419433000,-2500.0,0.00013699,2]
[422802110,1779419433000,-2437.89,0.00013699,2]
[422802113,1779419433000,-200.0,0.00013699,2]
[422802112,1779419433000,-166.83,0.00013699,2]
[422802114,1779419433000,-720.21,0.00013699,2]
[422802089,1779419433000,-500.0,0.00013698,2]
[422802102,1779419433000,-24999.99,0.00013699,2]
[422802087,1779419433000,-500.0,0.00013698,2]
[422802074,1779419433000,-511.57349745,0.00013698,2]
[422802083,1779419433000,-500.0,0.00013698,2]
[422802063,1779419433000,-179.79752112,0.000136,2]
[422802062,1779419433000,-1007.81,0.000136,2]
[422802061,1779419433000,-4537.36834082,0.000136,2]
[422802060,1779419433000,-18931.40619691,0.00013599,2]
[422802064,1779419433000,-378.87547598,0.000136,2]
[422802065,1779419433000,-169.63692676,0.000136,2]
[422802066,1779419433000,-208.7374384,0.00013618,2]
[422802067,1779419433000,-215.27762834,0.00013618,2]
[422802068,1779419433000,-150.0,0.00013646,2]
[422802070,1779419433000,-151.0,0.00013697,2]
[422802071,1779419433000,-152.0,0.00013697,2]
[422802072,1779419433000,-500.0,0.00013698,2]
[422802069,1779419433000,-170.71755429,0.0001369,2]
[422802116,1779419433000,-300.0,0.00013699,2]
[422802073,1779419433000,-500.0,0.00013698,2]
[422802076,1779419433000,-500.0,0.00013698,2]
[422802075,1779419433000,-500.0,0.00013698,2]
[422802078,1779419433000,-516.73,0.00013698,2]
[422802077,1779419433000,-516.73,0.00013698,2]
[422802079,1779419433000,-506.75086284,0.00013698,2]
[422802081,1779419433000,-500.0,0.00013698,2]
[422802080,1779419433000,-500.0,0.00013698,2]
[422802084,1779419433000,-500.0,0.00013698,2]
[422802082,1779419433000,-500.0,0.00013698,2]
[422802085,1779419433000,-500.0,0.00013698,2]
[422802086,1779419433000,-500.0,0.00013698,2]
[422802115,1779419433000,-300.0,0.00013699,2]
[422802101,1779419433000,-9999.99,0.00013699,2]
[422802120,1779419433000,-254.47988803,0.00013699,2]
[422802149,1779419433000,-500.0,0.00013699,2]
[422802148,1779419433000,-501.2128294,0.00013699,2]
[422802150,1779419433000,-500.0,0.00013699,2]
[422802151,1779419433000,-500.0,0.00013699,2]
[422802152,1779419433000,-500.0,0.00013699,2]
[422802154,1779419433000,-500.0,0.00013699,2]
[422802153,1779419433000,-500.0,0.00013699,2]
[422802156,1779419433000,-500.0,0.00013699,2]
[422802155,1779419433000,-519.2209323,0.00013699,2]
[422802158,1779419433000,-500.0,0.00013699,2]
[422802157,1779419433000,-500.0,0.00013699,2]
[422802160,1779419433000,-500.0,0.00013699,2]
[422802147,1779419433000,-500.0,0.00013699,2]
[422802161,1779419433000,-500.0,0.00013699,2]
[422802163,1779419433000,-500.0,0.00013699,2]
[422802159,1779419433000,-500.0,0.00013699,2]
[422802164,1779419433000,-478.0,0.00013699,2]
[422802165,1779419433000,-500.28174121,0.00013699,2]
[422802167,1779419433000,-500.0,0.00013699,2]
[422802166,1779419433000,-500.0,0.00013699,2]
[422802169,1779419433000,-500.0,0.00013699,2]
[422802168,1779419433000,-500.0,0.00013699,2]
[422802170,1779419433000,-500.0,0.00013699,2]
[422802171,1779419433000,-500.0,0.00013699,2]
[422802172,1779419433000,-500.0,0.00013699,2]
[422802118,1779419433000,-500.0,0.00013699,2]
[422802162,1779419433000,-500.0,0.00013699,2]
[422802146,1779419433000,-500.0,0.00013699,2]
[422802173,1779419433000,-500.0,0.00013699,2]
[422802143,1779419433000,-500.0,0.00013699,2]
[422802145,1779419433000,-500.0,0.00013699,2]
[422802117,1779419433000,-666.0,0.00013699,2]
[422802122,1779419433000,-505.86858071,0.00013699,2]
[422802121,1779419433000,-568.83754166,0.00013699,2]
[422802123,1779419433000,-500.0,0.00013699,2]
[422802124,1779419433000,-500.0,0.00013699,2]
[422802126,1779419433000,-500.0,0.00013699,2]
[422802125,1779419433000,-500.0,0.00013699,2]
[422802127,1779419433000,-500.0,0.00013699,2]
[422802130,1779419433000,-500.0,0.00013699,2]
[422802131,1779419433000,-500.0,0.00013699,2]
[422802129,1779419433000,-398.89012876,0.00013699,2]
[422802119,1779419433000,-190.1734799,0.00013699,2]
[422802139,1779419433000,-500.0,0.00013699,2]
[422802133,1779419433000,-500.0,0.00013699,2]
[422802132,1779419433000,-500.0,0.00013699,2]
[422802134,1779419433000,-500.0,0.00013699,2]
[422802135,1779419433000,-500.0,0.00013699,2]
[422802136,1779419433000,-500.0,0.00013699,2]
[422802138,1779419433000,-500.0,0.00013699,2]
[422802137,1779419433000,-500.0,0.00013699,2]
[422802128,1779419433000,-500.0,0.00013699,2]
[422802142,1779419433000,-625.7470238,0.00013699,2]
[422802141,1779419433000,-500.0,0.00013699,2]
[422802140,1779419433000,-500.0,0.00013699,2]
[422802144,1779419433000,-500.0,0.00013699,2]
[422802209,1779419434000,-500.0,0.00013699,2]
[422802227,1779419434000,-500.0,0.00013699,2]
[422802212,1779419434000,-500.0,0.00013699,2]
[422802210,1779419434000,-500.0,0.00013699,2]
[422802211,1779419434000,-500.0,0.00013699,2]
[422802203,1779419434000,-500.0,0.00013699,2]
[422802202,1779419434000,-500.0,0.00013699,2]
[422802204,1779419434000,-500.0,0.00013699,2]
[422802208,1779419434000,-226.75849924,0.00013699,2]
[422802206,1779419434000,-500.0,0.00013699,2]
[422802207,1779419434000,-500.0,0.00013699,2]
[422802213,1779419434000,-500.0,0.00013699,2]
[422802221,1779419434000,-500.0,0.00013699,2]
[422802216,1779419434000,-500.0,0.00013699,2]
[422802219,1779419434000,-500.0,0.00013699,2]
[422802217,1779419434000,-500.0,0.00013699,2]
[422802218,1779419434000,-400.63127979,0.00013699,2]
[422802214,1779419434000,-500.0,0.00013699,2]
[422802223,1779419434000,-500.0,0.00013699,2]
[422802220,1779419434000,-500.0,0.00013699,2]
[422802222,1779419434000,-500.0,0.00013699,2]
[422802224,1779419434000,-500.0,0.00013699,2]
[422802226,1779419434000,-500.0,0.00013699,2]
[422802229,1779419434000,-500.0,0.00013699,2]
[422802205,1779419434000,-500.0,0.00013699,2]
[422802215,1779419434000,-500.0,0.00013699,2]
[422802201,1779419434000,-500.0,0.00013699,2]
[422802185,1779419434000,-516.73,0.00013699,2]
[422802200,1779419434000,-500.0,0.00013699,2]
[422802225,1779419434000,-500.0,0.00013699,2]
[422802174,1779419434000,-500.0,0.00013699,2]
[422802175,1779419434000,-513.85470887,0.00013699,2]
[422802176,1779419434000,-500.0,0.00013699,2]
[422802177,1779419434000,-500.0,0.00013699,2]
[422802178,1779419434000,-500.0,0.00013699,2]
[422802179,1779419434000,-474.62307338,0.00013699,2]
[422802182,1779419434000,-516.73,0.00013699,2]
[422802180,1779419434000,-500.0,0.00013699,2]
[422802181,1779419434000,-516.73,0.00013699,2]
[422802183,1779419434000,-516.73,0.00013699,2]
[422802184,1779419434000,-516.73,0.00013699,2]
[422802188,1779419434000,-516.73,0.00013699,2]
[422802189,1779419434000,-516.73,0.00013699,2]
[422802187,1779419434000,-516.73,0.00013699,2]
[422802186,1779419434000,-516.73,0.00013699,2]
[422802193,1779419434000,-500.0,0.00013699,2]
[422802192,1779419434000,-516.73,0.00013699,2]
[422802190,1779419434000,-516.73,0.00013699,2]
[422802191,1779419434000,-516.73,0.00013699,2]
[422802194,1779419434000,-500.0,0.00013699,2]
[422802195,1779419434000,-500.0,0.00013699,2]
[422802196,1779419434000,-500.0,0.00013699,2]
[422802197,1779419434000,-500.0,0.00013699,2]
[422802198,1779419434000,-500.0,0.00013699,2]
[422802199,1779419434000,-500.0,0.00013699,2]
[422802230,1779419434000,-500.0,0.00013699,2]
[422802276,1779419434000,-500.0,0.00013699,2]
[422802231,1779419434000,-536.32116482,0.00013699,2]
[422802260,1779419434000,-638.20052037,0.00013699,2]
[422802261,1779419434000,-500.0,0.00013699,2]
[422802264,1779419434000,-2118.04,0.00013699,2]
[422802263,1779419434000,-2118.04,0.00013699,2]
[422802265,1779419434000,-2118.04,0.00013699,2]
[422802266,1779419434000,-2118.04,0.00013699,2]
[422802269,1779419434000,-2118.04,0.00013699,2]
[422802268,1779419434000,-2118.04,0.00013699,2]
[422802267,1779419434000,-2118.04,0.00013699,2]
[422802270,1779419434000,-2118.04,0.00013699,2]
[422802271,1779419434000,-2118.04,0.00013699,2]
[422802273,1779419434000,-2118.04,0.00013699,2]
[422802272,1779419434000,-2118.04,0.00013699,2]
[422802274,1779419434000,-2118.04,0.00013699,2]
[422802275,1779419434000,-2118.04,0.00013699,2]
[422802277,1779419434000,-500.0,0.00013699,2]
[422802278,1779419434000,-500.0,0.00013699,2]
[422802281,1779419434000,-500.0,0.00013699,2]
[422802280,1779419434000,-500.0,0.00013699,2]
[422802279,1779419434000,-500.0,0.00013699,2]
[422802282,1779419434000,-500.0,0.00013699,2]
[422802228,1779419434000,-500.0,0.00013699,2]
[422802286,1779419434000,-500.0,0.00013699,2]
[422802283,1779419434000,-500.0,0.00013699,2]
[422802284,1779419434000,-500.0,0.00013699,2]
[422802258,1779419434000,-500.0,0.00013699,2]
[422802259,1779419434000,-500.0,0.00013699,2]
[422802285,1779419434000,-500.0,0.00013699,2]
[422802262,1779419434000,-500.0,0.00013699,2]
[422802257,1779419434000,-500.0,0.00013699,2]
[422802233,1779419434000,-500.0,0.00013699,2]
[422802235,1779419434000,-500.0,0.00013699,2]
[422802234,1779419434000,-500.0,0.00013699,2]
[422802236,1779419434000,-500.0,0.00013699,2]
[422802238,1779419434000,-500.0,0.00013699,2]
[422802239,1779419434000,-500.0,0.00013699,2]
[422802242,1779419434000,-500.0,0.00013699,2]
[422802241,1779419434000,-500.0,0.00013699,2]
[422802240,1779419434000,-500.0,0.00013699,2]
[422802237,1779419434000,-500.0,0.00013699,2]
[422802243,1779419434000,-500.0,0.00013699,2]
[422802232,1779419434000,-500.0,0.00013699,2]
[422802249,1779419434000,-500.0,0.00013699,2]
[422802254,1779419434000,-500.0,0.00013699,2]
[422802244,1779419434000,-500.0,0.00013699,2]
[422802253,1779419434000,-500.0,0.00013699,2]
[422802251,1779419434000,-500.0,0.00013699,2]
[422802256,1779419434000,-500.0,0.00013699,2]
[422802255,1779419434000,-500.0,0.00013699,2]
[422802252,1779419434000,-500.0,0.00013699,2]
[422802248,1779419434000,-500.0,0.00013699,2]
[422802247,1779419434000,-500.0,0.00013699,2]
[422802245,1779419434000,-500.0,0.00013699,2]
[422802246,1779419434000,-500.0,0.00013699,2]
[422802250,1779419434000,-500.0,0.00013699,2]
[422802316,1779419435000,-500.0,0.00013699,2]
[422802314,1779419435000,-500.0,0.00013699,2]
[422802317,1779419435000,-500.0,0.00013699,2]
[422802318,1779419435000,-500.0,0.00013699,2]
[422802320,1779419435000,-523.75497223,0.00013699,2]
[422802321,1779419435000,-500.0,0.00013699,2]
[422802319,1779419435000,-500.0,0.00013699,2]
[422802322,1779419435000,-500.0,0.00013699,2]
[422802323,1779419435000,-500.0,0.00013699,2]
[422802324,1779419435000,-500.0,0.00013699,2]
[422802325,1779419435000,-500.0,0.00013699,2]
[422802327,1779419435000,-500.0,0.00013699,2]
[422802328,1779419435000,-500.0,0.00013699,2]
[422802329,1779419435000,-500.0,0.00013699,2]
[422802337,1779419435000,-500.0,0.00013699,2]
[422802330,1779419435000,-500.0,0.00013699,2]
[422802332,1779419435000,-500.0,0.00013699,2]
[422802331,1779419435000,-500.0,0.00013699,2]
[422802333,1779419435000,-500.0,0.00013699,2]
[422802334,1779419435000,-500.0,0.00013699,2]
[422802338,1779419435000,-211.69972075,0.00013699,2]
[422802313,1779419435000,-500.0,0.00013699,2]
[422802326,1779419435000,-500.0,0.00013699,2]
[422802315,1779419435000,-500.0,0.00013699,2]
[422802303,1779419435000,-500.0,0.00013699,2]
[422802311,1779419435000,-500.0,0.00013699,2]
[422802335,1779419435000,-500.0,0.00013699,2]
[422802287,1779419435000,-500.0,0.00013699,2]
[422802288,1779419435000,-500.0,0.00013699,2]
[422802289,1779419435000,-500.0,0.00013699,2]
[422802291,1779419435000,-500.0,0.00013699,2]
[422802290,1779419435000,-500.0,0.00013699,2]
[422802292,1779419435000,-500.0,0.00013699,2]
[422802294,1779419435000,-500.0,0.00013699,2]
[422802296,1779419435000,-500.0,0.00013699,2]
[422802298,1779419435000,-500.0,0.00013699,2]
[422802312,1779419435000,-500.0,0.00013699,2]